fUSD/lending_fUSD_20240629
["ID","MTS","AMOUNT","RATE_DAILY","PERIOD"]
[330637471,1719678648287,-500.0,0.00013899,3]
[330637472,1719678648296,-500.0,0.00013899,3]
[330637473,1719678648306,-500.0,0.00013899,3]
[330637474,1719678648315,-993.03,0.00013899,3]
[330637475,1719678648324,-500.0,0.00013899,3]
[330637476,1719678648333,-500.0,0.00013899,3]
[330637477,1719678648343,-2271.69516166,0.00013899,3]
[330637478,1719678648354,-1996.62483834,0.00013899,3]
[330637479,1719678648363,-500.0,0.00013899,3]
[330637480,1719678648372,-467.45169041,0.00013899,3]
[330637481,1719678648382,-28.97299406,0.00013899,3]
[330637482,1719678648398,-749.26404731,0.00013899,3]
[330637483,1719678648670,-363.56295863,0.00013899,3]
[330637484,1719678648679,-500.0,0.00013899,3]
[330637485,1719678648690,-380.37617277,0.00013899,3]
[330637486,1719678648701,-119.62382723,0.00013899,3]
[330637487,1719678648711,-334.23288687,0.00013899,3]
[330637488,1719678648722,-1308.30798617,0.00013899,3]
[330637489,1719678649424,-185.46399961,0.00013888,2]
[330637490,1719678649434,-389.23912696,0.00013899,3]
[330637491,1719678649443,-467.81366509,0.00013899,3]
[330637492,1719678649455,-32.18633491,0.00013899,3]
[330637493,1719678649465,-500.0,0.00013899,3]
[330637494,1719678649474,-500.0,0.00013899,3]
[330637495,1719678649485,-2186.81366509,0.00013899,3]
[330637496,1719678649499,-724.52419805,0.00013899,3]
[330637497,1719678649510,-1718.13213686,0.00013899,3]
[330637498,1719678649520,-742.14,0.00013899,3]
[330637499,1719678649530,-500.0,0.00013899,3]
[330637500,1719678649540,-850.21,0.00013899,3]
[330637501,1719678649549,-384.23089304,0.00013899,3]
[330637502,1719678649560,-115.76910696,0.00013899,3]
[330637503,1719678649572,-500.0,0.00013899,3]
[330637504,1719678649582,-1805.2,0.00013899,3]
[330637505,1719678649591,-500.0,0.00013899,3]
[330637506,1719678649600,-1520.72,0.00013899,3]
[330637507,1719678649609,-500.0,0.00013899,3]
[330637508,1719678649619,-293.11089304,0.00013899,3]
[330637509,1719678649630,-834.49910696,0.00013899,3]
[330637510,1719678649640,-500.0,0.00013899,3]
[330637511,1719678649649,-136.20444854,0.00013899,3]
[330637512,1719678649660,-737.13555146,0.00013899,3]
[330637513,1719678649671,-2431.38,0.00013899,3]
[330637514,1719678649680,-500.0,0.00013899,3]
[330637515,1719678649689,-1920.92,0.00013899,3]
[330637516,1719678649699,-205.7548361,0.00013899,3]
[330637517,1719678649724,-590.6851639,0.00013899,3]
[330637518,1719678649734,-1528.68,0.00013899,3]
[330637519,1719678649743,-87.8149314,0.00013899,3]
[330637520,1719678649765,-1016.8150686,0.00013899,3]
[330637521,1719678649774,-9425.87,0.00013899,3]
[330637522,1719678649784,-200.0,0.000139,5]
[330637523,1719678649794,-6965.8258546,0.000139,2]
[330637524,1719678649804,-201.39580508,0.000139,2]
[330637525,1719678649813,-2130.6174182,0.000139,2]
[330637526,1719678649822,-227.40200593,0.000139,2]
[330637527,1719678649832,-1160.67130303,0.00013906,2]
[330637528,1719678649842,-2408.96,0.00013915,2]
[330637529,1719678649851,-500.0,0.00013915,2]
[330637530,1719678649861,-2712.14,0.00013915,2]
[330637531,1719678649870,-1414.85,0.00013915,3]
[330637532,1719678649891,-3705.15,0.00013915,3]
[330637533,1719678649901,-5912.77,0.00013915,3]
[330637534,1719678649910,-5823.91,0.00013915,3]
[330637535,1719678649920,-1940.12,0.00013915,3]
[330637536,1719678649929,-3848.6,0.00013915,3]
[330637537,1719678649939,-2193.38,0.00013916,3]
[330637538,1719678649948,-1563.22,0.00013916,3]
[330637539,1719678649958,-500.0,0.00013916,3]
[330637540,1719678649967,-3131.86,0.00013916,3]
[330637541,1719678649977,-500.0,0.00013916,3]
[330637542,1719678649987,-1528.69,0.00013916,3]
[330637543,1719678649997,-1511.09,0.00013916,3]
[330637544,1719678650007,-2595.74,0.00013916,3]
[330637545,1719678650016,-2499.8,0.00013916,3]
[330637546,1719678650026,-2072.73,0.00013916,3]
[330637547,1719678650036,-2052.17,0.00013916,3]
[330637548,1719678650047,-2374.59,0.00013916,3]
[330637549,1719678650057,-500.0,0.00013916,3]
[330637550,1719678650067,-2105.49,0.00013916,3]
[330637551,1719678650077,-859.12,0.00013916,3]
[330637552,1719678650087,-1747.8,0.00013916,3]
[330637553,1719678650097,-1881.27,0.00013916,3]
[330637554,1719678650107,-4796.27,0.00013916,3]
[330637555,1719678650117,-1804.52,0.00013916,3]
[330637556,1719678650128,-2747.94,0.00013916,3]
[330637557,1719678650139,-500.0,0.00013916,3]
[330637558,1719678650149,-1385.81,0.00013916,3]
[330637559,1719678650159,-1933.44,0.00013916,3]
[330637560,1719678650170,-660.85,0.00013916,3]
[330637561,1719678650180,-1494.47,0.00013916,3]
[330637562,1719678650190,-2004.04,0.00013916,3]
[330637563,1719678650201,-5431.25,0.00013916,3]
[330637564,1719678650210,-2486.7,0.00013916,3]
[330637565,1719678650220,-3655.07,0.00013916,3]
[330637566,1719678650230,-2780.33,0.00013916,3]
[330637567,1719678650240,-2543.28,0.00013916,3]
[330637568,1719678650250,-3016.67,0.00013916,3]
[330637569,1719678650259,-12671.27,0.00013916,3]
[330637570,1719678650270,-500.0,0.00013916,3]
[330637571,1719678650282,-500.0,0.00013916,3]
[330637572,1719678650293,-870.1,0.00013916,3]
[330637573,1719678650306,-841.89,0.00013916,3]
[330637574,1719678650316,-2801.92,0.00013916,3]
[330637575,1719678650327,-3617.74,0.00013916,3]
[330637576,1719678650337,-2508.39,0.00013916,3]
[330637577,1719678650347,-5350.62,0.00013916,3]
[330637578,1719678650357,-1750.36,0.00013916,3]
[330637579,1719678650367,-5707.74908189,0.00013938,2]
[330637580,1719678650376,-176.41638491,0.00013985,2]
[330637581,1719678650386,-2250.7,0.00013988,2]
[330637582,1719678650396,-5645.0790911,0.00013989,2]
[330637583,1719678650406,-30036.7720028,0.00013989,2]
[330637584,1719678650416,-71110.5473971,0.00013989,2]
[330637585,1719678650426,-6358.323853,0.00013989,2]
[330637586,1719678650437,-4692.4379314,0.00013989,2]
[330637587,1719678650447,-185.46399961,0.00013998,2]
[330637588,1719678650457,-2408.96,0.00013998,2]
[330637589,1719678650468,-2408.96,0.00013998,2]
[330637590,1719678650478,-500.0,0.00013998,2]
[330637591,1719678650493,-2250.7,0.00013998,2]
[330637592,1719678650503,-2250.7,0.00013998,2]
[330637593,1719678650513,-2712.14,0.00013998,2]
[330637594,1719678650523,-1280.24,0.00013999,3]
[330637595,1719678650534,-816.17,0.00013999,3]
[330637596,1719678650544,-780.25,0.00013999,3]
[330637597,1719678650554,-587.48,0.00013999,3]
[330637598,1719678650565,-587.98,0.00013999,3]
[330637599,1719678650576,-1291.59,0.00013999,3]
[330637600,1719678650586,-500.0,0.00013999,3]
[330637601,1719678650596,-623.24,0.00013999,3]
[330637602,1719678650606,-500.0,0.00013999,3]
[330637603,1719678650616,-500.0,0.00013999,3]
[330637604,1719678650626,-500.0,0.00013999,3]
[330637605,1719678650636,-500.0,0.00013999,3]
[330637606,1719678650646,-500.0,0.00013999,3]
[330637607,1719678650656,-599.33,0.00013999,3]
[330637608,1719678650666,-500.0,0.00013999,3]
[330637609,1719678650676,-2408.96,0.00013999,2]
[330637610,1719678650686,-2408.96,0.00013999,2]
[330637611,1719678650696,-2408.96,0.00013999,2]
[330637612,1719678650706,-500.0,0.00013999,3]
[330637613,1719678650716,-500.0,0.00013999,3]
[330637614,1719678650726,-500.0,0.00013999,3]
[330637615,1719678650742,-1835.55,0.00013999,3]
[330637616,1719678650753,-503.66,0.00013999,3]
[330637617,1719678650764,-500.0,0.00013999,3]
[330637618,1719678650775,-500.0,0.00013999,3]
[330637619,1719678650786,-500.0,0.00013999,3]
[330637620,1719678650797,-739.49,0.00013999,3]
[330637621,1719678650807,-578.93,0.00013999,3]
[330637622,1719678650818,-500.0,0.00013999,3]
[330637623,1719678650828,-832.2,0.00013999,3]
[330637624,1719678650839,-500.0,0.00013999,3]
[330637625,1719678650849,-232.9591286,0.00013999,3]
[330637626,1719678650861,-500.0,0.00013999,3]
[330637627,1719678650871,-500.0,0.00013999,3]
[330637628,1719678650882,-526.17,0.00013999,3]
[330637629,1719678650892,-1374.0,0.00013999,3]
[330637630,1719678650902,-514.38,0.00013999,3]
[330637631,1719678650913,-500.0,0.00013999,3]
[330637632,1719678650924,-500.0,0.00013999,3]
[330637633,1719678650934,-500.0,0.00013999,2]
[330637634,1719678650944,-1325.19,0.00013999,3]
[330637635,1719678650954,-500.0,0.00013999,2]
[330637636,1719678650964,-1159.54,0.00013999,3]
[330637637,1719678650975,-500.0,0.00013999,2]
[330637638,1719678650985,-500.0,0.00013999,2]
[330637639,1719678650995,-500.0,0.00013999,3]
[330637640,1719678651006,-500.0,0.00013999,3]
[330637641,1719678651016,-500.0,0.00013999,3]
[330637642,1719678651027,-500.0,0.00013999,3]
[330637643,1719678651038,-1189.56,0.00013999,3]
[330637644,1719678651048,-500.0,0.00013999,3]
[330637645,1719678651059,-2252.17,0.00013999,3]
[330637646,1719678651069,-500.0,0.00013999,3]
[330637647,1719678651079,-812.24,0.00013999,3]
[330637648,1719678651090,-1495.17,0.00013999,3]
[330637649,1719678651099,-502.21638008,0.00013999,3]
[330637650,1719678651110,-500.0,0.00013999,3]
[330637651,1719678651120,-1386.07,0.00013999,3]
[330637652,1719678651130,-709.36,0.00013999,3]
[330637653,1719678651141,-1733.4,0.00013999,3]
[330637654,1719678651151,-1137.55,0.00013999,2]
[330637655,1719678651161,-4097.52,0.00013999,3]
[330637656,1719678651171,-500.0,0.00013999,3]
[330637657,1719678651182,-500.0,0.00013999,3]
[330637658,1719678651193,-701.28,0.00013999,3]
[330637659,1719678651203,-1244.26,0.00013999,3]
[330637660,1719678651213,-640.21,0.00013999,3]
[330637661,1719678651223,-1066.34,0.00013999,3]
[330637662,1719678651234,-657.4,0.00013999,3]
[330637663,1719678651244,-500.0,0.00013999,3]
[330637664,1719678651254,-785.56,0.00013999,3]
[330637665,1719678651264,-1030.56,0.00013999,3]
[330637666,1719678651274,-151.0,0.00013999,2]
[330637667,1719678651285,-784.45,0.00013999,3]
[330637668,1719678651296,-2040.29,0.00013999,3]
[330637669,1719678651307,-500.0,0.00013999,3]
[330637670,1719678651317,-919.15,0.00013999,3]
[330637671,1719678651327,-867.01,0.00013999,3]
[330637672,1719678651337,-571.01,0.00013999,3]
[330637673,1719678651347,-1097.03,0.00013999,3]
[330637674,1719678651922,-151.0,0.00013999,2]
[330637675,1719678651932,-500.0,0.00013999,3]
[330637676,1719678651943,-500.0,0.00013999,3]
[330637677,1719678651952,-2072.91,0.00013999,3]
[330637678,1719678651962,-767.57,0.00013999,3]
[330637679,1719678651971,-500.0,0.00013999,3]
[330637680,1719678651981,-898.11,0.00013999,3]
[330637681,1719678651990,-579.66,0.00013999,3]
[330637682,1719678652000,-1200.11,0.00013999,3]
[330637683,1719678652009,-500.0,0.00013999,3]
[330637684,1719678652018,-721.83,0.00013999,3]
[330637685,1719678652028,-1105.65,0.00013999,3]
[330637686,1719678652038,-1426.36,0.00013999,3]
[330637687,1719678652047,-500.0,0.00013999,3]
[330637688,1719678652057,-1436.64,0.00013999,3]
[330637689,1719678652067,-1340.08,0.00013999,3]
[330637690,1719678652076,-151.0,0.00013999,2]
[330637691,1719678652086,-151.163942,0.00013999,2]
[330637692,1719678652095,-151.0,0.00013999,2]
[330637693,1719678652105,-500.0,0.00013999,3]
[330637694,1719678652115,-151.163942,0.00013999,2]
[330637695,1719678652124,-1525.82,0.00013999,3]
[330637696,1719678652134,-151.0,0.00013999,2]
[330637697,1719678652144,-500.0,0.00013999,3]
[330637698,1719678652153,-151.0,0.00013999,2]
[330637699,1719678652163,-151.0,0.00013999,2]
[330637700,1719678652174,-500.0,0.00013999,3]
[330637701,1719678652184,-151.0,0.00013999,2]
[330637702,1719678652194,-1331.74,0.00013999,3]
[330637703,1719678652203,-151.0,0.00013999,2]
[330637704,1719678652212,-1221.49,0.00013999,3]
[330637705,1719678652222,-1156.03,0.00013999,3]
[330637706,1719678652234,-927.68,0.00013999,3]
[330637707,1719678652243,-500.0,0.00013999,3]
[330637708,1719678652255,-524.75,0.00013999,3]
[330637709,1719678652265,-500.0,0.00013999,3]
[330637710,1719678652275,-233.942866,0.00013999,2]
[330637711,1719678652285,-238.965834,0.00013999,2]
[330637712,1719678652296,-233.942866,0.00013999,2]
[330637713,1719678652305,-238.965834,0.00013999,2]
[330637714,1719678652315,-582.36,0.00013999,3]
[330637715,1719678652324,-151.0,0.00013999,2]
[330637716,1719678652334,-529.54,0.00013999,3]
[330637717,1719678652344,-151.0,0.00013999,2]
[330637718,1719678652353,-808.21,0.00013999,3]
[330637719,1719678652363,-596.01,0.00013999,3]
[330637720,1719678652372,-585.62,0.00013999,3]
[330637721,1719678652381,-500.0,0.00013999,3]
[330637722,1719678652391,-1383.92,0.00013999,3]
[330637723,1719678652401,-2254.36,0.00013999,3]
[330637724,1719678652410,-1307.13,0.00013999,3]
[330637725,1719678652420,-151.0,0.00013999,2]
[330637726,1719678652430,-502.18450314,0.00013999,3]
[330637727,1719678652439,-500.0,0.00013999,3]
[330637728,1719678652449,-500.0,0.00013999,3]
[330637729,1719678652458,-1974.28,0.00013999,3]
[330637730,1719678652468,-500.62,0.00013999,3]
[330637731,1719678652477,-2424.78,0.00013999,3]
[330637732,1719678652490,-151.0,0.00013999,2]
[330637733,1719678652500,-1783.26,0.00013999,3]
[330637734,1719678652510,-830.31,0.00013999,3]
[330637735,1719678652520,-190.948585,0.00013999,2]
[330637736,1719678652530,-1279.94,0.00013999,3]
[330637737,1719678652540,-151.0,0.00013999,2]
[330637738,1719678652549,-190.948585,0.00013999,2]
[330637739,1719678652560,-151.0,0.00013999,2]
[330637740,1719678652571,-627.32,0.00013999,3]
[330637741,1719678652580,-151.0,0.00013999,2]
[330637742,1719678652590,-500.0,0.00013999,3]
[330637743,1719678652599,-2250.7,0.00013999,2]
[330637744,1719678652608,-2250.7,0.00013999,2]
[330637745,1719678652617,-2250.7,0.00013999,2]
[330637746,1719678652627,-500.0,0.00013999,3]
[330637747,1719678652636,-500.0,0.00013999,3]
[330637748,1719678652645,-500.0,0.00013999,3]
[330637749,1719678652655,-1251.46,0.00013999,3]
[330637750,1719678652664,-151.0,0.00013999,2]
[330637751,1719678652675,-151.0,0.00013999,2]
[330637752,1719678652684,-751.51,0.00013999,3]
[330637753,1719678652693,-1069.89,0.00013999,3]
[330637754,1719678652702,-3461.83,0.00013999,3]
[330637755,1719678652711,-1553.05,0.00013999,3]
[330637756,1719678652721,-151.0,0.00013999,2]
[330637757,1719678652730,-151.0,0.00013999,2]
[330637758,1719678652739,-336.291285,0.00013999,2]
[330637759,1719678652749,-500.0,0.00013999,3]
[330637760,1719678652758,-336.291285,0.00013999,2]
[330637761,1719678652768,-1687.54,0.00013999,3]
[330637762,1719678652777,-2562.14,0.00013999,3]
[330637763,1719678652787,-151.0,0.00013999,2]
[330637764,1719678652796,-500.0,0.00013999,3]
[330637765,1719678652806,-500.0,0.00013999,3]
[330637766,1719678652815,-3817.41,0.00013999,3]
[330637767,1719678652825,-500.0,0.00013999,3]
[330637768,1719678652834,-500.0,0.00013999,3]
[330637769,1719678652844,-151.0,0.00013999,2]
[330637770,1719678652854,-500.0,0.00013999,3]
[330637771,1719678652865,-500.0,0.00013999,3]
[330637772,1719678652875,-151.0,0.00013999,2]
[330637773,1719678652885,-500.0,0.00013999,3]
[330637774,1719678652895,-151.0,0.00013999,2]
[330637775,1719678652904,-503.32,0.00013999,3]
[330637776,1719678652914,-151.0,0.00013999,2]
[330637777,1719678652923,-765.07,0.00013999,3]
[330637778,1719678652933,-574.84,0.00013999,3]
[330637779,1719678652942,-500.0,0.00013999,3]
[330637780,1719678652952,-1724.44,0.00013999,3]
[330637781,1719678652962,-590.98,0.00013999,3]
[330637782,1719678652971,-151.0,0.00013999,2]
[330637783,1719678652981,-500.0,0.00013999,3]
[330637784,1719678652990,-151.0,0.00013999,2]
[330637785,1719678652999,-500.0,0.00013999,3]
[330637786,1719678653008,-500.0,0.00013999,3]
[330637787,1719678653018,-1097.43,0.00013999,3]
[330637788,1719678653027,-595.85,0.00013999,3]
[330637789,1719678653036,-752.98,0.00013999,3]
[330637790,1719678653046,-151.0,0.00013999,2]
[330637791,1719678653055,-2958.54,0.00013999,3]
[330637792,1719678653065,-153.72668931,0.00013999,3]
[330637793,1719678653074,-880.65,0.00013999,3]
[330637794,1719678653083,-1090.23,0.00013999,3]
[330637795,1719678653093,-3485.43,0.00013999,3]
[330637796,1719678653102,-555.187484,0.00013999,2]
[330637797,1719678653111,-1147.21,0.00013999,3]
[330637798,1719678653121,-555.187484,0.00013999,2]
[330637799,1719678653131,-2712.14,0.00013999,2]
[330637800,1719678653140,-2712.14,0.00013999,2]
[330637801,1719678653149,-2712.14,0.00013999,2]
[330637802,1719678653158,-2712.14,0.00013999,2]
[330637803,1719678653168,-151.0,0.00013999,2]
[330637804,1719678653178,-924.78,0.00013999,3]
[330637805,1719678653187,-500.0,0.00013999,3]
[330637806,1719678653197,-3928.47,0.00013999,3]
[330637807,1719678653207,-500.0,0.00013999,3]
[330637808,1719678653216,-889.52,0.00013999,3]
[330637809,1719678653226,-151.0,0.00013999,2]
[330637810,1719678653235,-3661.41,0.00013999,3]
[330637811,1719678653245,-500.0,0.00013999,3]
[330637812,1719678653254,-500.0,0.00013999,3]
[330637813,1719678653263,-195.133267,0.00013999,2]
[330637814,1719678653272,-195.133267,0.00013999,2]
[330637815,1719678653281,-500.0,0.00013999,3]
[330637816,1719678653293,-153.766045,0.00013999,2]
[330637817,1719678653303,-6588.46,0.00013999,3]
[330637818,1719678653312,-3772.26,0.00013999,3]
[330637819,1719678653322,-151.0,0.00013999,2]
[330637820,1719678653331,-153.766045,0.00013999,2]
[330637821,1719678653341,-500.0,0.00013999,3]
[330637822,1719678653350,-210.715728,0.00013999,2]
[330637823,1719678653359,-1740.92,0.00013999,3]
[330637824,1719678653368,-4143.49,0.00013999,3]
[330637825,1719678653377,-879.75,0.00013999,3]
[330637826,1719678653386,-151.0,0.00013999,2]
[330637827,1719678653395,-500.0,0.00013999,3]
[330637828,1719678653405,-261.974103,0.00013999,2]
[330637829,1719678653414,-832.64,0.00013999,3]
[330637830,1719678653424,-261.974103,0.00013999,2]
[330637831,1719678653433,-151.0,0.00013999,2]
[330637832,1719678653443,-1225.29,0.00013999,3]
[330637833,1719678653452,-2273.6,0.00013999,3]
[330637834,1719678653462,-2622.01,0.00013999,3]
[330637835,1719678653472,-500.0,0.00013999,3]
[330637836,1719678653482,-500.0,0.00013999,3]
[330637837,1719678653497,-221.965169,0.00013999,2]
[330637838,1719678653506,-658.9,0.00013999,3]
[330637839,1719678653516,-3753.45,0.00013999,3]
[330637840,1719678653525,-2466.679446,0.00013999,2]
[330637841,1719678653536,-2466.679446,0.00013999,2]
[330637842,1719678653547,-296.528424,0.00013999,2]
[330637843,1719678653557,-500.0,0.00013999,3]
[330637844,1719678653567,-500.0,0.00013999,3]
[330637845,1719678653579,-296.528424,0.00013999,2]
[330637846,1719678653588,-252.939701,0.00013999,2]
[330637847,1719678653598,-500.0,0.00013999,3]
[330637848,1719678653607,-151.0,0.00013999,2]
[330637849,1719678653616,-252.939701,0.00013999,2]
[330637850,1719678653626,-1358.41,0.00013999,3]
[330637851,1719678653636,-2301.43,0.00013999,3]
[330637852,1719678653645,-7061.9,0.00013999,3]
[330637853,1719678653654,-150.0,0.00013999,2]
[330637854,1719678653663,-905.58,0.00013999,3]
[330637855,1719678653672,-500.0,0.00013999,3]
[330637856,1719678653682,-2820.87,0.00013999,3]
[330637857,1719678653691,-500.0,0.00013999,3]
[330637858,1719678653700,-1967.14,0.00013999,3]
[330637859,1719678653709,-1110.15,0.00013999,3]
[330637860,1719678653719,-277.986515,0.00013999,2]
[330637861,1719678653728,-277.986515,0.00013999,2]
[330637862,1719678653737,-123205.86019168,0.00014,2]
[330637863,1719678653756,-664.97560459,0.00014,2]
[330637864,1719678653769,-609.95,0.00014,2]
[330637865,1719678653780,-1692.20876631,0.00014,2]
[330637866,1719678653791,-11582.50964721,0.00014,2]
[330637867,1719678653803,-2012.74517923,0.00014,2]
[330637868,1719678653814,-552.83366482,0.00014,2]
[330637869,1719678653826,-2140.314,0.00014,2]
[330637870,1719678653837,-682.94,0.00014,2]
[330637871,1719678653849,-15792.50828716,0.00014,2]
[330637872,1719678653866,-281.0,0.00014,2]
[330637873,1719678653878,-3399.39625553,0.00014,2]
[330637874,1719678805754,396.35,0.00011075,2]
[330637879,1719678885016,7243.17768869,0.00011075,2]
[330637889,1719679022278,-156.32206566,0.00012302,2]
[330637890,1719679022301,-155.0,0.00012314,2]
[330637891,1719679022324,-288.90280711,0.000125,2]
[330637892,1719679022346,-250.0,0.00012764,2]
[330637893,1719679022368,-676.85,0.00012953,2]
[330637894,1719679022392,-640.0,0.00012998,2]
[330637895,1719679022417,-158.12,0.00013039,2]
[330637896,1719679022444,-158.12,0.00013107,2]
[330637897,1719679022468,-158.12,0.00013175,2]
[330637898,1719679022492,-158.12,0.00013243,2]
[330637899,1719679022515,-158.12,0.00013311,2]
[330637900,1719679022538,-396.35,0.00013339,2]
[330637901,1719679022562,-158.12,0.00013379,2]
[330637902,1719679022583,-158.12,0.00013447,2]
[330637903,1719679022608,-158.12,0.00013515,2]
[330637904,1719679022630,-158.12,0.00013583,2]
[330637905,1719679022652,-158.12,0.00013651,2]
[330637906,1719679022676,-158.12,0.00013719,2]
[330637907,1719679022698,-384.99357971,0.00013763,2]
[330637908,1719679022718,-182.32785996,0.00013795,2]
[330637909,1719679022740,-174.4274597,0.00013796,2]
[330637910,1719679022761,-305.35123803,0.00013797,2]
[330637911,1719679022785,-1150.74172349,0.00013799,2]
[330637912,1719679022806,-233.85367932,0.000138,2]
[330637913,1719679022828,-427.21293137,0.00013817,2]
[330637914,1719679022850,-182.32785994,0.00013848,2]
[330637915,1719679022873,-300.0,0.00013859,2]
[330637916,1719679022895,-2356.01879571,0.0001386,2]
[330637917,1719679024303,-155.0,0.00012302,2]
[330637918,1719679024325,-9845.0,0.0001386,2]
[330637919,1719679024941,-10000.0,0.0001386,2]
[330637939,1719679378188,356.71,0.00010993,2]
[330637946,1719679586523,3106.52214219,0.00011199,2]
[330637954,1719679831586,-297.37308138,0.00012302,2]
[330637955,1719679831597,-250.0,0.0001286,2]
[330637956,1719679831607,-688.92,0.0001289,2]
[330637957,1719679831616,-250.0,0.00012921,2]
[330637958,1719679831626,-356.71,0.00013257,2]
[330637960,1719679831635,-300.0,0.00013345,2]
[330637962,1719679831645,-421.27500979,0.00013346,2]
[330637964,1719679831657,-73184.45438734,0.00013346,2]
[330637965,1719679831668,-331.9629089,0.00013346,2]
[330637966,1719679831686,-833.79793316,0.00013346,2]
[330637967,1719679831697,-318.86689986,0.00013346,2]
[330637968,1719679831709,-266.34568794,0.00013346,2]
[330637969,1719679831720,-39548.29717301,0.00013346,2]
[330637970,1719679831731,-283.25,0.00013464,2]
[330637971,1719679831742,-1263.08088063,0.00013472,2]
[330637972,1719679831751,-10000.0,0.00013516,2]
[330637973,1719679831761,-181.62365705,0.00013516,2]
[330637974,1719679831771,-540.82430088,0.00013516,2]
[330637975,1719679831833,-505.38615579,0.00013516,2]
[330637977,1719679831898,-23.73690628,0.00013516,2]
[330637978,1719679831907,-617.69651851,0.00013621,2]
[330637979,1719679833475,-7.225e-05,0.00013621,2]
[330637980,1719679833504,-1800.0,0.00013621,2]
[330637981,1719679833525,-253.12656111,0.00013621,2]
[330637982,1719679833536,-690.20000005,0.00013621,2]
[330637983,1719679833547,-5875.65961346,0.00013621,2]
[330637984,1719679833556,-150.0,0.00013699,2]
[330637985,1719679833566,-499.99,0.00013759,2]
[330637986,1719679833576,-2026.89721059,0.0001379,2]
[330637987,1719679833585,-182.32785994,0.00013793,2]
[330637988,1719679833595,-9976.57347939,0.00013795,2]
[330637989,1719679833643,-826.29867666,0.00013795,2]
[330637990,1719679833654,-28469.485378,0.00013795,2]
[330638000,1719679837613,-1156.17156595,0.00013795,2]
[330638001,1719679837622,-167.96133149,0.00013796,2]
[330638002,1719679837632,-5383.56712395,0.00013797,2]
[330638003,1719679837642,-167.27843964,0.00013799,2]
[330638004,1719679837651,-1035.66755115,0.00013799,2]
[330638005,1719679837660,-2026.89721059,0.00013804,2]
[330638006,1719679837670,-1035.66755113,0.00013804,2]
[330638007,1719679837679,-820.67813,0.0001386,2]
[330638008,1719679837688,-1337.64,0.00013892,3]
[330638009,1719679837699,-500.0,0.00013892,3]
[330638010,1719679837708,-769.66,0.00013892,3]
[330638011,1719679837717,-500.0,0.00013892,3]
[330638012,1719679837726,-1066.67,0.00013892,3]
[330638013,1719679837736,-853.32,0.00013892,3]
[330638014,1719679837746,-1442.19,0.00013892,3]
[330638015,1719679837755,-597.57,0.00013892,3]
[330638016,1719679837765,-1161.6,0.00013892,3]
[330638017,1719679837774,-500.0,0.00013892,3]
[330638018,1719679837784,-720.26,0.00013892,3]
[330638019,1719679837793,-2099.73,0.00013892,3]
[330638020,1719679837803,-500.0,0.00013892,3]
[330638021,1719679837812,-500.0,0.00013892,3]
[330638022,1719679837821,-500.0,0.00013892,3]
[330638023,1719679837831,-500.0,0.00013892,3]
[330638024,1719679837841,-1219.94,0.00013892,3]
[330638025,1719679837852,-966.17,0.00013892,3]
[330638026,1719679837864,-1180.66,0.00013892,3]
[330638027,1719679837873,-500.0,0.00013892,3]
[330638028,1719679837883,-500.0,0.00013892,3]